{"text_format":"1","workbook":"xlsx","n_sheets":2,"sheets":["Ficha","Cadro Plan de melloras"],"not_rendered":{"charts":0,"images":1,"macros":1,"external_links":0,"defined_names":1,"comments":0,"pivot_tables":0},"unopened":[],"bounds":{"document_bytes":16777216,"sheet_cells":100000,"rows_first":2000,"rows_last":500,"rows_between":2000,"halvings":0,"cell_chars":16384,"cell_head_chars":4096},"cells_cut":0,"cells_raw":0,"read":"whole","date_system":"1900"}

{"sheet":"Ficha","index":0,"n_rows":27,"n_cols":10,"rows_kept":27,"cut":false,"hidden":false,"merged":[[1,0,1,1],[20,0,20,1]]}
[null,"Área de Apoio á Docencia e Calidade",null,null,null,null,"Renovación da acreditación das titulacións oficiais","Realizada","Universidade","Facultade de Ciencias"]
["Ficha de Mellora",null,null,null,null,null,"Seguimento anual das titulacións","Realizada parcialmente","Centro","Facultade de Historia"]
["CENTRO",null,null,null,null,null,"Certificación da implantación do Sistema de Garantía de CALIDADE","Planificada","Titulación","Facultade de Dereito"]
["Nº de Ficha de mellora",null,null,null,null,null,"SGIC (Revisión pola dirección)","Pendente",null,"Facultade de CC. Empresariais e do Turismo"]
["Curso académico no que se formula a acción",null,null,null,null,null,"Outros",null,null,"Facultade de CC. da Educación"]
["Programa de calidade asociado",null,null,null,null,null,null,null,null,"Escola Superior de Enxeñaría Informática"]
["Criterio do programa ao que se asocia",null,null,null,null,null,null,null,null,"Escola de Enfermaría (Ou)"]
["Ámbito de aplicación",null,null,null,null,null,null,null,null,"Facultade de Belas Artes"]
["Titulación (sempre que o alcance sexa titulación)",null,null,null,null,null,null,null,null,"Facultade de CC. da Educación e do Deporte"]
["Denominación da acción de mellora",null,null,null,null,null,null,null,null,"Escola de Enxeñaría Forestal"]
["Punto débil / Análise das causas",null,null,null,null,null,null,null,null,"Facultade de CC. Sociais e da Comunicación"]
["Obxectivos",null,null,null,null,null,null,null,null,"Facultade de Fisioterapia"]
["Actuacións a desenvolver",null,null,null,null,null,null,null,null,"Escola de Enfermaría (Po)"]
["Data límite para a súa execución",null,null,null,null,null,{"$f":"IF(B14=\"\",\"\",IF(B14<TODAY(),0,IF(B14>TODAY(),2,1)))","v":""},null,null,"Centro Universitario da Defensa"]
["Recursos / financiamento",null,null,null,null,null,null,null,null,"Facultade de Filoloxía"]
["Responsable da súa aplicación",null,null,null,null,null,null,null,null,"Facultade de Bioloxía"]
["Responsable do seguimento",null,null,null,null,null,null,null,null,"Facultade de CC. Económicas e Empresariais"]
["Data para realizar o seguimento",null,null,null,null,null,{"$f":"+IF(B14=\"\",\"\",IF(B18=\"\",\"\",IF(B18>=B14,0,\"\")))","v":""},null,null,"Escola de Enxeñaría Industrial"]
["Indicadores de execución ou evidencias documentais da súa implantación",null,null,null,null,null,null,null,null,"Escola de Enxeñaría de Telecomunicación"]
["OBSERVACIÓNS",null,null,null,null,null,null,null,null,"Escola de Estudos Empresariais"]
["Revisión / Valoración da acción de mellora",null,null,null,null,null,null,null,null,"Escola Técnica Superior de Enxeñaría de Minas"]
["Estado / Nivel de cumprimento",null,null,null,null,null,{"$f":"+IF(B22=\"\",\"\",IF(B22=\"Realizada\",3,IF(B22=\"Realizada parcialmente\",2,IF(B22=\"Planificada\",1,0))))","v":""},null,null,"Facultade de Ciencias do Mar"]
["Resultados obtidos",null,null,null,null,null,null,null,null,"Facultade Química"]
["Grado de satisfacción",null,null,null,null,null,null,null,null,"Escola de Maxisterio \"María Sedes Sapientae\""]
["Accions correctoras a desenvolver",null,null,null,null,null,null,null,null,"Escola de Enfermaría (Meixoeiro)"]
["Responsable da revisión",null,null,null,null,null,{"$f":"+IF(B26=\"\",\"\",IF(B26=\"Realizada\",3,IF(B26=\"Realizada parcialmente\",2,IF(B26=\"Planificada\",1,0))))","v":""},null,null,"Escola de Enfermaría (Povisa)"]
["Data da revisión",null,null,null,null,null,{"$f":"+IF(B27=\"\",\"\",IF(B27=\"Realizada\",3,IF(B27=\"Realizada parcialmente\",2,IF(B27=\"Planificada\",1,0))))","v":""},null,null,"Escola de Negocios Afundación"]

{"sheet":"Cadro Plan de melloras","index":1,"n_rows":51,"n_cols":36,"rows_kept":51,"cut":false,"hidden":false,"merged":[[3,0,3,17],[2,0,2,23],[3,18,3,23],[1,20,1,23]]}
[null,null,null,null,null,null,null,null,null,null,null,null,null,null,null,null,null,null,null,null,null,null,null,null,null,null,null,null,null,null,null,null,null,"Renovación da acreditación das titulacións oficiais","Planificada","Universidade"]
[null,null,null,null,null,null,null,null,null,null,null,null,null,null,null,null,null,null,null,null,"Área de Calidade",null,null,null,null,null,null,null,null,null,null,null,null,"Seguimento anual das titulacións","Realizada parcialmente","Centro"]
["Cadro de seguimento do plan de melloras",null,null,null,null,null,null,null,null,null,null,null,null,null,null,null,null,null,null,null,null,null,null,null,null,null,null,null,null,null,null,null,null,"Certificación da implantación do Sistema de Garantía de CALIDADE","Realizada","Títulación"]
["Ficha de mellora",null,null,null,null,null,null,null,null,null,null,null,null,null,null,null,null,null,"Revisión / Valoración da acción de mellora",null,null,null,null,null,null,null,null,null,null,null,null,null,null,"SGIC (Revisión pola dirección)","Pendente"]
["CENTRO","Nº de Ficha de mellora","Curso académico no que se formula a acción","Programa de calidade asociado","Criterio do programa ao que se asocia","Ámbito de aplicación","Titulación (sempre que o alcance sexa titulación)","Denominación da acción de mellora","Punto débil / Análise das causas","Obxectivos","Actuacións a desenvolver","Data límite para a súa execución","Recursos / financiamento","Responsable da súa aplicación","Responsable do seguimento","Data para realizar o seguimento","Indicadores de execución ou evidencias documentais da súa implantación","Observacións","Estado / Nivel de cumprimento","Resultados obtidos","Grao de satisfacción","Accions correctoras a desenvolver","Responsable da revisión","Data da revisión",null,null,null,null,null,null,null,null,null,"Outros"]
["Facultade de Ciencias Xuridicas e de Traballo","2015-GRL(15)","2015-2016","Renovación da acreditación das titulacións oficiais","Criterio 1. Organización e desenvolvo","Titulación","Grao en Relacións Laborais e Recursos Humanos","Adatacion do sistema de trasferencia e recoñecemento de creditos.","Necesidade de adaptación do sistema de transferencia e recoñecemento de créditos entre os estudos realizados conforme ao antigo plan de estudos e ao novo implantado no curso 2015/2016","Adaptación do sistema de transferencia e recoñecemento de créditos á nova memoria do Grao en RRLL e RRHH aprobada en 2015 e implantada no curso 2015/2016. ",null,"2016-07-31","Propios","Xunta de Centro","Comision de calidade","2016-04-30",null,null,null,null,null,null,null,null,43,null,null,null,null,null,null,null,{"$f":"IF(L6=\"\",\"\",IF(AND(L6>TODAY(),S6=\"\"),3,IF(AND(L6<TODAY(),S6=\"\"),0,IF(AND(L6>TODAY(),AH6<=2),3,IF(AND(L6<=TODAY(),AH6<=2),0,IF(S6=\"\",\"\"))))))","v":3},{"$f":"+IF(S6=\"\",\"\",IF(S6=\"Realizada\",3,IF(S6=\"Realizada parcialmente\",2,IF(S6=\"Planificada\",1,0))))","v":""},{"$f":"+IF(L6=\"\",\"\",IF(P6=\"\",\"\",IF(P6>=L6,0,\"\")))","v":""}]
["Facultade de Ciencias Xuridicas e de Traballo","2015-GRL(14)","2015-2016","Renovación da acreditación das titulacións oficiais","Criterio 1. Organización e desenvolvo","Centro","Grao en Relacións Laborais e Recursos Humanos  //  Dereito","Publicidad cursos Ingles.",null,"Incrementar a publicidade dos cursos de idiomas que ofrece a Uvigo.","Publicidad Web do centro en redes sociales.","2016-07-31","Propios","Xunta de Centro","Comision de calidade","2016-04-30",null,null,null,null,null,null,null,null,43,null,null,null,null,null,null,null,{"$f":"IF(L7=\"\",\"\",IF(AND(L7>TODAY(),S7=\"\"),3,IF(AND(L7<TODAY(),S7=\"\"),0,IF(AND(L7>TODAY(),AH7<=2),3,IF(AND(L7<=TODAY(),AH7<=2),0,IF(S7=\"\",\"\"))))))","v":3},{"$f":"+IF(S7=\"\",\"\",IF(S7=\"Realizada\",3,IF(S7=\"Realizada parcialmente\",2,IF(S7=\"Planificada\",1,0))))","v":""},{"$f":"+IF(L7=\"\",\"\",IF(P7=\"\",\"\",IF(P7>=L7,0,\"\")))","v":""}]
["Facultade de Ciencias Xuridicas e de Traballo","2015-GRL(13)","2015-2016","Renovación da acreditación das titulacións oficiais","Criterio 1. Organización e desenvolvo","Centro","Grao en Relacións Laborais e Recursos Humanos // Dereito","Incremento convocatorias TFG.","Taxa de éxito do TFG mellorable","Incremento do número de convocatorias anuais para a defensa do TFG.","Cambio normativa TFG.","2015-12-31","Propios","Xunta de Centro","Comision de calidade","2016-07-31","Actas de Las reuniones.",null,null,null,null,null,null,null,43,null,null,null,null,null,null,null,{"$f":"IF(L8=\"\",\"\",IF(AND(L8>TODAY(),S8=\"\"),3,IF(AND(L8<TODAY(),S8=\"\"),0,IF(AND(L8>TODAY(),AH8<=2),3,IF(AND(L8<=TODAY(),AH8<=2),0,IF(S8=\"\",\"\"))))))","v":3},{"$f":"+IF(S8=\"\",\"\",IF(S8=\"Realizada\",3,IF(S8=\"Realizada parcialmente\",2,IF(S8=\"Planificada\",1,0))))","v":""},{"$f":"+IF(L8=\"\",\"\",IF(P8=\"\",\"\",IF(P8>=L8,0,\"\")))","v":0}]
["Facultade de Ciencias Xuridicas e de Traballo","2015-GRL(12)","2015-2016","Renovación da acreditación das titulacións oficiais","Criterio 1. Organización e desenvolvo","Centro","Grao en Relacións Laborais e Recursos Humanos e Dereito","Impacto dos programas de mobilidade .","Analizar con máis detalle os programas de movilidade sobre a planificación e desenrolo do Grao.","Analizar a información dos programas de movilidade, para renovar os distintos convenios e ampliación aos novos.","Informe del responsable Erasmus","2016-10-31","Recursos Propios","Comisón de calidade da Facultade de Ciencias Xurídicas e do Traballo","Decanato da Facultade","2016-07-31",null,null,null,null,null,null,null,null,42,null,null,null,null,null,null,null,{"$f":"IF(L9=\"\",\"\",IF(AND(L9>TODAY(),S9=\"\"),3,IF(AND(L9<TODAY(),S9=\"\"),0,IF(AND(L9>TODAY(),AH9<=2),3,IF(AND(L9<=TODAY(),AH9<=2),0,IF(S9=\"\",\"\"))))))","v":3},{"$f":"+IF(S9=\"\",\"\",IF(S9=\"Realizada\",3,IF(S9=\"Realizada parcialmente\",2,IF(S9=\"Planificada\",1,0))))","v":""},{"$f":"+IF(L9=\"\",\"\",IF(P9=\"\",\"\",IF(P9>=L9,0,\"\")))","v":""}]
["Facultade de Ciencias Xuridicas e de Traballo","2015-GRL(11)","2015-2016","Renovación da acreditación das titulacións oficiais","Criterio 1. Organización e desenvolvo","Titulación","Grao en Relacións Laborais e Recursos Humanos","Mellora da mobilidade.","Escaso número de alumnos interesados en participar nos plans de mobilidade.",null,"Incrementar a publicidade dos plans de mobilidade e das bolsas e axudas existentes","2016-07-31","Propios","Xunta de Centro","Comision de calidade","2016-04-30",null,null,null,null,null,null,null,null,41,null,null,null,null,null,null,null,{"$f":"IF(L10=\"\",\"\",IF(AND(L10>TODAY(),S10=\"\"),3,IF(AND(L10<TODAY(),S10=\"\"),0,IF(AND(L10>TODAY(),AH10<=2),3,IF(AND(L10<=TODAY(),AH10<=2),0,IF(S10=\"\",\"\"))))))","v":3},{"$f":"+IF(S10=\"\",\"\",IF(S10=\"Realizada\",3,IF(S10=\"Realizada parcialmente\",2,IF(S10=\"Planificada\",1,0))))","v":""},{"$f":"+IF(L10=\"\",\"\",IF(P10=\"\",\"\",IF(P10>=L10,0,\"\")))","v":""}]
["Facultade de Ciencias Xuridicas e de Traballo","2015-GRL(10)","2015-2016","Renovación da acreditación das titulacións oficiais","Criterio 1. Organización e desenvolvo","Titulación","Grao en Relacións Laborais e Recursos Humanos","Redución da incorporación tardía.","Significativo número de alumnos que se incorpora ao primeiro curso unha vez iniciado xa este.",null,"Seguir incidindo nas tarefas de promoción para reducir o número de alumnos que se incorpora ao curso unha vez xa iniciado","2016-07-31","Propios","Xunta de Centro","Comision de calidade","2016-04-30",null,null,null,null,null,null,null,null,40,null,null,null,null,null,null,null,{"$f":"IF(L11=\"\",\"\",IF(AND(L11>TODAY(),S11=\"\"),3,IF(AND(L11<TODAY(),S11=\"\"),0,IF(AND(L11>TODAY(),AH11<=2),3,IF(AND(L11<=TODAY(),AH11<=2),0,IF(S11=\"\",\"\"))))))","v":3},{"$f":"+IF(S11=\"\",\"\",IF(S11=\"Realizada\",3,IF(S11=\"Realizada parcialmente\",2,IF(S11=\"Planificada\",1,0))))","v":""},{"$f":"+IF(L11=\"\",\"\",IF(P11=\"\",\"\",IF(P11>=L11,0,\"\")))","v":""}]
["Facultade de Ciencias Xuridicas e de Traballo","2015-GRL(09)","2015-2016","Renovación da acreditación das titulacións oficiais","Criterio 2. Información e transparencia","Centro",null,"Mellorar a presenza na rede.",null,"Incremento visibilidade do título nas redes sociais (Facebook e Twitter) e en medios de comunicación. Continuar no camiño da revisión e actualización periódica e constante da páxina web.",null,"2016-07-31","Propios","Xunta de Centro","Comision de calidade","2016-04-30",null,null,null,null,null,null,null,null,39,null,null,null,null,null,null,null,{"$f":"IF(L12=\"\",\"\",IF(AND(L12>TODAY(),S12=\"\"),3,IF(AND(L12<TODAY(),S12=\"\"),0,IF(AND(L12>TODAY(),AH12<=2),3,IF(AND(L12<=TODAY(),AH12<=2),0,IF(S12=\"\",\"\"))))))","v":3},{"$f":"+IF(S12=\"\",\"\",IF(S12=\"Realizada\",3,IF(S12=\"Realizada parcialmente\",2,IF(S12=\"Planificada\",1,0))))","v":""},{"$f":"+IF(L12=\"\",\"\",IF(P12=\"\",\"\",IF(P12>=L12,0,\"\")))","v":""}]
["Facultade de Ciencias Xurídicas e do Traballo ","2015-GRL(08)","2015-2016","Renovación da acreditación das titulacións oficiais","Criterio 2. Información e Transparencia - Criterio 3.  Sistema de Garantía de Calidade","Centro","Grao en Relacións Laborais e Recursos Humanos","Difusión da titulación entre os grupos de interese e a sociedade.","Nivel de divulgación da titulación mellorable","Chegar a un maior número de alumnos pre-universitarios.","Aumentar o ámbito de divulgación da titulación, Mellora da publicidade .","2016-07-31","Recursos Propios  e Reitoría","Decanato ","Decanato ","2016-04-30","Accións públicas en colexios e nos medios","Acción cíclica, que se mantén de forma continuada","Realizada",null,null,"Continuar coa difusión.","Decanato","2016-07-31",38,null,null,null,null,null,null,null,{"$f":"IF(L13=\"\",\"\",IF(AND(L13>TODAY(),S13=\"\"),3,IF(AND(L13<TODAY(),S13=\"\"),0,IF(AND(L13>TODAY(),AH13<=2),3,IF(AND(L13<=TODAY(),AH13<=2),0,IF(S13=\"\",\"\"))))))","v":false},{"$f":"+IF(S13=\"\",\"\",IF(S13=\"Realizada\",3,IF(S13=\"Realizada parcialmente\",2,IF(S13=\"Planificada\",1,0))))","v":3},{"$f":"+IF(L13=\"\",\"\",IF(P13=\"\",\"\",IF(P13>=L13,0,\"\")))","v":""}]
["Facultade de Ciencias Xuridicas e de Traballo","2015-GRL(07)","2015-2016","Certificación da implantación do Sistema de Garantía de CALIDADE","Criterio 3.  Sistema de Garantía de Calidade // Directriz 2. Como o Centro garante a calidade dos seus programas formativos. ","Centro",null,"Mellorar nota da gestion de calidade.","Relativo baixo nivel de satisfacción mostrado polo alumnado na enquisa do curso 2014/2015 respecto da xestión da calidade, Aínda que o índice de satisfacción do profesorado coa xestión da calidade é alto, é o apartado que recibe unha menor valoración.",null,"Mellorar a percepción e satisfacción do alumnado coa xestión da calidade e mellorar a percepción e satisfacción do profesorado coa xestión da calidade.","2016-07-31","Propios","Xunta de Centro","Comision de calidade","2016-04-30",null,null,null,null,null,null,null,null,37,null,null,null,null,null,null,null,{"$f":"IF(L14=\"\",\"\",IF(AND(L14>TODAY(),S14=\"\"),3,IF(AND(L14<TODAY(),S14=\"\"),0,IF(AND(L14>TODAY(),AH14<=2),3,IF(AND(L14<=TODAY(),AH14<=2),0,IF(S14=\"\",\"\"))))))","v":3},{"$f":"+IF(S14=\"\",\"\",IF(S14=\"Realizada\",3,IF(S14=\"Realizada parcialmente\",2,IF(S14=\"Planificada\",1,0))))","v":""},{"$f":"+IF(L14=\"\",\"\",IF(P14=\"\",\"\",IF(P14>=L14,0,\"\")))","v":""}]
["Facultade de Ciencias Xurídicas e do Traballo","2015-GRL(06)","2015-2016","Renovación da acreditación das titulacións oficiais","Criterio 3. Sistema de Garantía de Calidade - Criterio 6. Resultados de Aprendizaxe - Criterio 7. Indicadores de Satisfacción e Rendemento","Titulación","Grao en Relacións Laborais e Recursos Humanos","Consecución de datos de colocación e estatísticos dos egresados.","Mellorar o seguimiento dos egregesados.","Conseguir os datos dos egresados a través do Vicerreitorado do alumnado.","Conseguir datos sobre a colocación dos egresados.","2016-07-31","Reitoría","Decanato / Reitorado","Decanato ","2016-03-31","Solicitude á Decanato","Acción cíclica, que se mantén de forma continuada","Pendente",null,null,"Volver a solicitar aos datos.","Decanato","2016-07-31",36,null,null,null,null,null,null,null,{"$f":"IF(L15=\"\",\"\",IF(AND(L15>TODAY(),S15=\"\"),3,IF(AND(L15<TODAY(),S15=\"\"),0,IF(AND(L15>TODAY(),AH15<=2),3,IF(AND(L15<=TODAY(),AH15<=2),0,IF(S15=\"\",\"\"))))))","v":3},{"$f":"+IF(S15=\"\",\"\",IF(S15=\"Realizada\",3,IF(S15=\"Realizada parcialmente\",2,IF(S15=\"Planificada\",1,0))))","v":0},{"$f":"+IF(L15=\"\",\"\",IF(P15=\"\",\"\",IF(P15>=L15,0,\"\")))","v":""}]
["Facultade de Ciencias Xurídicas e do Traballo ","2015-GRL(19)","2015-2016","Certificación da implantación do Sistema de Garantía de CALIDADE","Criterio 3. Sistema de garantía de calidade //  Directriz 2. Como o Centro garante a calidade dos seus programas formativos. ","Centro",null,"Peche do ciclo de melloras continuas.","Insuficiente debate, valoración e seguimento de certas propostas na Comisión de Calidade.","Peche do ciclo de melloras continuas .","Aumentaro debate e valoración de propostas na Comisión de Calidade. Fixar Compromisos e Prazos de execución nas Actas de dito órgano.","2016-07-31","Recursos Propios","Comisión de Garantía de Calidade ",null,null,null,null,null,null,null,null,null,null,35,null,null,null,null,null,null,null,3,"",""]
["Facultade de Ciencias Xurídicas e do Traballo ","2015-GRL(20)","2015-2016","Certificación da implantación do Sistema de Garantía de CALIDADE","Criterio 3. Sistema de garantía de calidade //  Directriz 2. Como o Centro garante a calidade dos seus programas formativos. ","Centro",null,"Variación dos ratios dos obxectivos de calidade.","Ratios dos obxectivos de calidade calculados sobre base  7.","Variación dos ratios dos obxectivos de calidade para calculalos sobre base 5.","Revisión dos ratios dos obxectivos de calidade.","2016-07-31","Recursos Propios","Comisión de Garantía de Calidade ",null,null,null,null,null,null,null,null,null,null,34,null,null,null,null,null,null,null,{"$f":"IF(L17=\"\",\"\",IF(AND(L17>TODAY(),S17=\"\"),3,IF(AND(L17<TODAY(),S17=\"\"),0,IF(AND(L17>TODAY(),AH17<=2),3,IF(AND(L17<=TODAY(),AH17<=2),0,IF(S17=\"\",\"\"))))))","v":3},{"$f":"+IF(S17=\"\",\"\",IF(S17=\"Realizada\",3,IF(S17=\"Realizada parcialmente\",2,IF(S17=\"Planificada\",1,0))))","v":""},{"$f":"+IF(L17=\"\",\"\",IF(P17=\"\",\"\",IF(P17>=L17,0,\"\")))","v":""}]
["Facultade de Ciencias Xurídicas e do Traballo ","2015-GRL(22)","2015-2016","Certificación da implantación do Sistema de Garantía de CALIDADE","Criterio 3. Sistema de garantía de calidade //  Directriz 5. Como o Centro garante a calidade dos seus recursos materiais e servizos.","Centro",null,"Correcta implantación do procedemento de xestión dos recursos materiais.","Falta de análise e concreción de tal procedemento.","Correcta implantación do procedemento relativo os recusos materias.","Elaborar criterios para a selección de proveedores e ficha de pedido.","2016-07-31","Centro","Reitoria",null,"2016-05-31",null,null,null,null,null,null,null,null,33,null,null,null,null,null,null,null,{"$f":"IF(L18=\"\",\"\",IF(AND(L18>TODAY(),S18=\"\"),3,IF(AND(L18<TODAY(),S18=\"\"),0,IF(AND(L18>TODAY(),AH18<=2),3,IF(AND(L18<=TODAY(),AH18<=2),0,IF(S18=\"\",\"\"))))))","v":3},{"$f":"+IF(S18=\"\",\"\",IF(S18=\"Realizada\",3,IF(S18=\"Realizada parcialmente\",2,IF(S18=\"Planificada\",1,0))))","v":""},{"$f":"+IF(L18=\"\",\"\",IF(P18=\"\",\"\",IF(P18>=L18,0,\"\")))","v":""}]
["Facultade de Ciencias Xurídicas e do Traballo ","2015-GRL(21)","2015-2016","Certificación da implantación do Sistema de Garantía de CALIDADE","Criterio 3. Sistema de garantía de calidade // Directriz 5. Como o Centro garante a calidade dos seus recursos materiais e servizos.","Centro",null,"Enquisas de satisfacción PAS.","Falta de información acerca da satisfacción do PAS","Coñecemento das necesidades do PAS.","Solicitude dunhas enquisas de satisfacción do PAS.","2016-07-31","Centro","Reitoria",null,"2016-05-31",null,null,null,null,null,null,null,null,32,null,null,null,null,null,null,null,{"$f":"IF(L19=\"\",\"\",IF(AND(L19>TODAY(),S19=\"\"),3,IF(AND(L19<TODAY(),S19=\"\"),0,IF(AND(L19>TODAY(),AH19<=2),3,IF(AND(L19<=TODAY(),AH19<=2),0,IF(S19=\"\",\"\"))))))","v":3},{"$f":"+IF(S19=\"\",\"\",IF(S19=\"Realizada\",3,IF(S19=\"Realizada parcialmente\",2,IF(S19=\"Planificada\",1,0))))","v":""},{"$f":"+IF(L19=\"\",\"\",IF(P19=\"\",\"\",IF(P19>=L19,0,\"\")))","v":""}]
["Facultade de Ciencias Xurídicas e do Traballo ","2015-GRL(17)","2015-2016","Renovación da acreditación das titulacións oficiais","Criterio 4. Recursos Humanos","Centro","Grao en Relacións Laborais e Recursos Humanos  //  Dereito","Solicitar o adecuado recoñecemento das actividades académicas e de xestión do profesorado.","Falta de recoñecemento das actividades realizadas polo profesorado.","Recoñecemento e valorización das tarefas docentes, de xestión, de investigación e de transferencia.","Reclamación do recoñecemento das actividades realizadas polo profesorado.","2016-07-31","Reitoría","Comisión de Calidade","Comisión de Calidade","2016-07-31","Solicitude a Reitoría da adecuada valoracion e recoñecemento de todas as tarefas do profesorado",null,null,null,null,null,null,null,31,null,null,null,null,null,null,null,3,"",0]
["Facultade de Ciencias Xurídicas e do Traballo","2015-GRL(05)","2015-2016","Renovación da acreditación das titulacións oficiais","Criterio 4. Recursos Humanos","Centro","Grao en Relacións Laborais e Recursos Humanos // Dereito","Mellorar a  dotación e   estabilidad de profesorado da Facultade.","Existencia de profesorado con contratos interinos ou non funcionarios e áreas con dotación insuficiente de profesorado.","Acadar a funcionarización ou o convertimento a estable do profesorado e incorporar profesorado á Facultade.","Trasladar solicitudes ás instancias correspondentes.","2016-07-31","Ministerio de Educación, Consellería de Educación, Universidade","Reitoría","Comisión de Garantía de Calidade","2016-07-30","Solicitude a Reitoría ","Acción cíclica, que se mantén de forma continuada","Pendente",null,null,null,null,null,30,null,null,null,null,null,null,null,{"$f":"IF(L21=\"\",\"\",IF(AND(L21>TODAY(),S21=\"\"),3,IF(AND(L21<TODAY(),S21=\"\"),0,IF(AND(L21>TODAY(),AH21<=2),3,IF(AND(L21<=TODAY(),AH21<=2),0,IF(S21=\"\",\"\"))))))","v":3},{"$f":"+IF(S21=\"\",\"\",IF(S21=\"Realizada\",3,IF(S21=\"Realizada parcialmente\",2,IF(S21=\"Planificada\",1,0))))","v":0},{"$f":"+IF(L21=\"\",\"\",IF(P21=\"\",\"\",IF(P21>=L21,0,\"\")))","v":""}]
["Facultade de Ciencias Xurídicas e do Traballo","2015-GRL(18)","2015-2016","Renovación da acreditación das titulacións oficiais","Criterio 5 Recursos materiais e servizos","Centro","Grao en Relacións Laborais e Recursos Humanos  //  Dereito","Mellora dos espazos informáticos  a disposición do alumnado.","Necesidade de incrementar o número de postos de ordenadores para o alumnado.","Ampliación e mellora da aula de informática.","Ampliación e mellora da aula de informática.","2016-07-31","Recursos Propios","Decanato da Facultade de Ciencias Xurídicas e do Traballo e Reitorado","Decanato da Facultade de Ciencias Xurídicas e do Traballo ","2016-04-30","Execución de adquisición de materiais, Realizacion de un aula de Informatica e outra en proceso.",null,"Realizada parcialmente",null,null,null,null,null,29,null,null,null,null,null,null,null,false,3,""]
["Facultade de Ciencias Xuridicas e de Traballo","2015-GRL(04)","2015-2016","Renovación da acreditación das titulacións oficiais","Criterio 5. Recursos materiais e servizos","Títulación","Grao en Relacións Laborais e Recursos Humanos","Aumento fondos bibliograficos.","Os fondos bibliográficos a disposición do alumnado, en especial os de maior uso como manuais e textos legais, son nalgúns casos insuficientes.",null,"Incremento dos fondos bibliográficos recomendados polo profesorado nas guías docentes postos a disposición do alumnado.","2016-12-31","Reitoría","Reitoría","Comisión de Garantía de Calidade","2016-07-31","Comunicación da petición á Reitoría",null,null,null,null,null,null,null,28,null,null,null,null,null,null,null,3,"",""]
["Facultade de Ciencias Xurídicas e do Traballo","2015-GRL(16)","2015-2016","Renovación da acreditación das titulacións oficiais","Criterio 5. Recursos materiais e servizos - Criterio 6. Resultados de Aprendizaxe","Centro",null,"Difusión de traballos de investigación a través da revista da Facultade de Ciencias Xurídicas e do Traballo.","Necesidade de contar cun medio de publicación para o profesorado da Facultade, especialmente o novo e os invitados.","Continuidade na publicación da Revista e Promocion da mesma entre o PDI do Grado en relacions laborais e recursos humanos asi como a promoción da publicacion de traballos relacionados cos continos de titulación.","Petición aos docentes da Facultade, especialmente os docentes do Grado de Relaciones laborais,  e doutros centros de investigación de artigos para a súa publicación na revista.","2016-07-31","Recursos Propios","Decanato da Facultade de Ciencias Xurídicas e do Traballo ","Decanato da Facultade de Ciencias Xurídicas e do Traballo ","2016-04-30","Saída do número 2","Acción cíclica, que se mantén de forma continuada","Realizada","Publicación do nº 0 y nº 1.",null,null,"Decanato da Facultade de Ciencias Xurídicas e do Traballo .","2016-07-31",27,null,null,null,null,null,null,null,{"$f":"IF(L24=\"\",\"\",IF(AND(L24>TODAY(),S24=\"\"),3,IF(AND(L24<TODAY(),S24=\"\"),0,IF(AND(L24>TODAY(),AH24<=2),3,IF(AND(L24<=TODAY(),AH24<=2),0,IF(S24=\"\",\"\"))))))","v":false},{"$f":"+IF(S24=\"\",\"\",IF(S24=\"Realizada\",3,IF(S24=\"Realizada parcialmente\",2,IF(S24=\"Planificada\",1,0))))","v":3},{"$f":"+IF(L24=\"\",\"\",IF(P24=\"\",\"\",IF(P24>=L24,0,\"\")))","v":""}]
["Facultade de Ciencias Xuridicas e de Traballo","2015-GRL(03)","2015-2016","Renovación da acreditación das titulacións oficiais","Criterio 6. Resultados de aprendizaxe","Titulación","Grao en Relacións Laborais e Recursos Humanos","Mellora dos resultados de aprendizaxe."," Tasas de rendmiento, eficiencia e éxito susceptibles de mellora, tasa de abandono mellorable.","Mellora das tasas de rendemento, eficiencia e éxito.\nDisminución da tasa de abandono\n",null,"2016-07-31","Centro","Xunta de Centro","Comisión de garantia de calidade","2016-07-30",null,null,null,null,null,null,null,null,26,null,null,null,null,null,null,null,{"$f":"IF(L25=\"\",\"\",IF(AND(L25>TODAY(),S25=\"\"),3,IF(AND(L25<TODAY(),S25=\"\"),0,IF(AND(L25>TODAY(),AH25<=2),3,IF(AND(L25<=TODAY(),AH25<=2),0,IF(S25=\"\",\"\"))))))","v":3},{"$f":"+IF(S25=\"\",\"\",IF(S25=\"Realizada\",3,IF(S25=\"Realizada parcialmente\",2,IF(S25=\"Planificada\",1,0))))","v":""},{"$f":"+IF(L25=\"\",\"\",IF(P25=\"\",\"\",IF(P25>=L25,0,\"\")))","v":""}]
["Facultade de Ciencias Xuridicas e de Traballo","2015-GRL(02)","2015-2016","Renovación da acreditación das titulacións oficiais","Criterio 7. Indicadores de satisfacción e rendemento","Titulación","Grao en Relacións Laborais e Recursos Humanos","Estudos de inserccion laboral.","Falta de estudos de inserción laboral actualizados en relación co Grao en RRLL y RRHH.",null,"Solicitar a Uvigo que ben por sí misma ou dirixíndose o organismo competente, promova a realización de estudos de inserción laboral actualizados en relación o Grao en RRLL y RRHH.","2016-07-31","Reitoría","Reitoria","Decanato","2016-03-31","Solicitude á Reitoría",null,null,null,null,null,null,null,25,null,null,null,null,null,null,null,{"$f":"IF(L26=\"\",\"\",IF(AND(L26>TODAY(),S26=\"\"),3,IF(AND(L26<TODAY(),S26=\"\"),0,IF(AND(L26>TODAY(),AH26<=2),3,IF(AND(L26<=TODAY(),AH26<=2),0,IF(S26=\"\",\"\"))))))","v":3},{"$f":"+IF(S26=\"\",\"\",IF(S26=\"Realizada\",3,IF(S26=\"Realizada parcialmente\",2,IF(S26=\"Planificada\",1,0))))","v":""},{"$f":"+IF(L26=\"\",\"\",IF(P26=\"\",\"\",IF(P26>=L26,0,\"\")))","v":""}]
["Facultade de Ciencias Xuridicas e de Traballo","2015-GRL(01)","2015-2016","Renovación da acreditación das titulacións oficiais","Criterio 7. Indicadores de satisfacción e rendemento","Titulación","Grao en Relacións Laborais e Recursos Humanos","Mellora dos indicadores de sadisfaccion e rendemento.","Os niveis de satisfacción mostrados polo alumnado son relativamente baixos en relación co resto das titulaciones do Centro.  Muy baixa participación do alumnado e do profesorado nas enquisas de satisfacción.",null,"Mellora dos niveis de satisfacción mostrados polo alumnado. Incremento da participación na cumplimentación das enquisas de satisfacción tanto do alumnado como do profesorado","2016-04-30","Centro","Xunta de Centro","Comisión de Garantía de Calidade","2016-03-31",null,null,null,null,null,null,null,null,24,null,null,null,null,null,null,null,{"$f":"IF(L27=\"\",\"\",IF(AND(L27>TODAY(),S27=\"\"),3,IF(AND(L27<TODAY(),S27=\"\"),0,IF(AND(L27>TODAY(),AH27<=2),3,IF(AND(L27<=TODAY(),AH27<=2),0,IF(S27=\"\",\"\"))))))","v":3},{"$f":"+IF(S27=\"\",\"\",IF(S27=\"Realizada\",3,IF(S27=\"Realizada parcialmente\",2,IF(S27=\"Planificada\",1,0))))","v":""},{"$f":"+IF(L27=\"\",\"\",IF(P27=\"\",\"\",IF(P27>=L27,0,\"\")))","v":""}]
["Facultade de Ciencias Xuridicas e de Traballo","2014-GRL(22)","2014-2015","Seguimento anual das titulacións","Criterio 1. Organización e desenvolvo","Centro",null,"Revisión da composición da Comisión de Calidade.",null,"Adaptar a composición da Comisión de Calidade á realidade do centro.",null,"2015-12-31",null,"Xunta de Facultade\nComisión de Calidade",null,"2015-09-30","Acta Comisión de Calidade 27/10/2014",null,"Realizada","Nueva composion da comision de calidad.","Optimo",null,null,null,23,null,null,null,null,null,null,null,{"$f":"IF(L28=\"\",\"\",IF(AND(L28>TODAY(),S28=\"\"),3,IF(AND(L28<TODAY(),S28=\"\"),0,IF(AND(L28>TODAY(),AH28<=2),3,IF(AND(L28<=TODAY(),AH28<=2),0,IF(S28=\"\",\"\"))))))","v":false},{"$f":"+IF(S28=\"\",\"\",IF(S28=\"Realizada\",3,IF(S28=\"Realizada parcialmente\",2,IF(S28=\"Planificada\",1,0))))","v":3},{"$f":"+IF(L28=\"\",\"\",IF(P28=\"\",\"\",IF(P28>=L28,0,\"\")))","v":""}]
["Facultade de Ciencias Xuridicas e de Traballo","2014-GRL(21)","2014-2015","Seguimento anual das titulacións","Criterio 1. Organización e desenvolvo","Titulación","Grao en Relacións Laborais e Recursos Humanos","Mellora da Coordinación.","Funcionamento mellorable da Coordinación do Título.","Optimizar a coordinación vertical e horizontal.","Incremento das Reunións.","2015-10-31","Recursos Humanos do título\nRecursos Humanos da Facultade de Ciencias Xurídicas e do Traballo","Coordinador/a do Título\nXunta de Facultade","Coordinador/a do título\nComisión de Calidade\nXunta de Facultade","2014-07-30","Informe coordinación do Grao 30/9/2015 e documentos Anexos, adxuntados no Pdf na evidencia 14. ",null,"Realizada","Incremento das reunións de cordinación. Por un lado presenciais, cun mínimo de duas por curso.","Optimo",null,null,null,22,null,null,null,null,null,null,null,{"$f":"IF(L29=\"\",\"\",IF(AND(L29>TODAY(),S29=\"\"),3,IF(AND(L29<TODAY(),S29=\"\"),0,IF(AND(L29>TODAY(),AH29<=2),3,IF(AND(L29<=TODAY(),AH29<=2),0,IF(S29=\"\",\"\"))))))","v":false},{"$f":"+IF(S29=\"\",\"\",IF(S29=\"Realizada\",3,IF(S29=\"Realizada parcialmente\",2,IF(S29=\"Planificada\",1,0))))","v":3},{"$f":"+IF(L29=\"\",\"\",IF(P29=\"\",\"\",IF(P29>=L29,0,\"\")))","v":""}]
["Facultade de Ciencias Xuridicas e de Traballo","2014-GRL(20)","2014-2015","Seguimento anual das titulacións","Criterio 1. Organización e desenvolvo","Titulación","Grao en Relacións Laborais e Recursos Humanos","Reflexión sobre o TFG.","Dificultade do alumnado para elaborar o traballo.","Reflexionar sobre a avaliación do TFG en relación coa adquisición de competencias de acordo coa ficha da memoria.","Reunións co profesorado. Modificación da normativa reguladora do TFG. ","31/06/2015","Centro","Comisión do TFG da Facultade de Ciencias Xurídicas e do Traballo",null,"2015-03-30","Acta Comisión de Calidade 23/06/2015",null,"Realizada","Aprobada a modificación da normativa no 2014.","Optimo",null,null,null,21,null,null,null,null,null,null,null,{"$f":"IF(L30=\"\",\"\",IF(AND(L30>TODAY(),S30=\"\"),3,IF(AND(L30<TODAY(),S30=\"\"),0,IF(AND(L30>TODAY(),AH30<=2),3,IF(AND(L30<=TODAY(),AH30<=2),0,IF(S30=\"\",\"\"))))))","v":false},{"$f":"+IF(S30=\"\",\"\",IF(S30=\"Realizada\",3,IF(S30=\"Realizada parcialmente\",2,IF(S30=\"Planificada\",1,0))))","v":3},{"$f":"+IF(L30=\"\",\"\",IF(P30=\"\",\"\",IF(P30>=L30,0,\"\")))","v":""}]
["Facultade de Ciencias Xuridicas e de Traballo","2014-GRL(19)","2014-2015","Seguimento anual das titulacións","Criterio 1. Organización e desenvolvo","Titulación","Grao en Relacións Laborais e Recursos Humanos","Revisión das competencias.","Sobredimensionamento das competencias.","Revisar e reflexionar sobre os contidos ofertados no título e as súas respectivas competencias, a fin de adaptalos máis e mellor, se fose posible, ás necesidades formativas dos estudantes de acordo coas saídas profesionais da titulación.",null,"31/06/2015",null,"Coordinador/a do Título\nComisión de Calidade\nXunta de Facultade","Coordinador/a do Titulo\nXunta de Titulación\nComisión de Calidade\nXunta de Facultade","2015-03-30","Nova memoría do título aprobada en marzo do 2015.",null,"Realizada","Nova memoria do grao aprobada en marzo do ano 2015 e informada favorablemente pola ACSUG, que e o resultado da previa reflexion e revision dos contidos ofertados no título e as suas respectivas competencias para adaptándlas as necesidades formativas dos estudiantes de acordo coas saidas da titulación.","Dado que a execución do novo plan de estudos e de este ano, no hay experiencia suficiente para determinar aun o grado de satisfacción.",null,null,null,20,null,null,null,null,null,null,null,{"$f":"IF(L31=\"\",\"\",IF(AND(L31>TODAY(),S31=\"\"),3,IF(AND(L31<TODAY(),S31=\"\"),0,IF(AND(L31>TODAY(),AH31<=2),3,IF(AND(L31<=TODAY(),AH31<=2),0,IF(S31=\"\",\"\"))))))","v":false},{"$f":"+IF(S31=\"\",\"\",IF(S31=\"Realizada\",3,IF(S31=\"Realizada parcialmente\",2,IF(S31=\"Planificada\",1,0))))","v":3},{"$f":"+IF(L31=\"\",\"\",IF(P31=\"\",\"\",IF(P31>=L31,0,\"\")))","v":""}]
["Facultade de Ciencias Xuridicas e de Traballo","2014-GRL(18)","2014-2015","Seguimento anual das titulacións","Criterio 1. Organización e desenvolvo","Titulación","Grao en Relacións Laborais e Recursos Humanos","Análise da carga docente.","Os resultados dos indicadores de satisfacción sobre a planificación das ensinanzas teñen uns resultados relativamente baixos.","Valorar se a carga de traballo, a distribución de prácticas e teoría e a planificación das prácticas, é inadecuada ou mellorable, e proceder a estudar estas posibles modificacións.",null,"2015-11-30","Recursos Humanos da Facultade de Ciencias Xurídicas e do Traballo","Coordinador/a do Título\nComisión de Calidade\nXunta de Facultade","Coordinador/a do Título\nComisión de Calidade\nXunta de Facultade","2015-08-30",null,"Acción cíclica, que se mantén de forma continuada","Realizada","No momento de elaboración de cronogramas, como acción de coordinación entre o coordinador do titulo e os coordinadores das materias realizouse unha valoración da carga de traballo e a distribución de practícalas logrando evitar duplicidades, inadecuacións e erros con caracter previo ao comezo do cuadrimestre.","Suficiente","Valorouse a carga de traballo e a distribución das prácticas, e indicouse aos profesores que o teñan en conta na súa elaboración dos seus cronogramas. As debanditas valoración e indicación efectuaranse todos os anos con motivo da dita elaboración dos cronogramas.",null,null,19,null,null,null,null,null,null,null,{"$f":"IF(L32=\"\",\"\",IF(AND(L32>TODAY(),S32=\"\"),3,IF(AND(L32<TODAY(),S32=\"\"),0,IF(AND(L32>TODAY(),AH32<=2),3,IF(AND(L32<=TODAY(),AH32<=2),0,IF(S32=\"\",\"\"))))))","v":false},{"$f":"+IF(S32=\"\",\"\",IF(S32=\"Realizada\",3,IF(S32=\"Realizada parcialmente\",2,IF(S32=\"Planificada\",1,0))))","v":3},{"$f":"+IF(L32=\"\",\"\",IF(P32=\"\",\"\",IF(P32>=L32,0,\"\")))","v":""}]
["Facultade de Ciencias Xuridicas e de Traballo","2014-GRL(17)","2014-2015","Seguimento anual das titulacións","Criterio 2. Información e transparencia","Centro",null,"Ampliación da información mostrada na web do centro.","Necesidade de ampliar a información mostrada na páxina web relativa aos títulos.","Incluir na páxina web datos relativos as titulacións e mellorar a información dos títulos que se imparten na facultade, Manter a páxina web actualizada para unha mellor información de todos os grupos de interese.","Engadir información na páxina web. Revisión periódica da páxina web.","2015-11-30","Decanato","Equipo Decanal, Comisión de Calidade","Comisión de Calidade, Coordinador de Calidade,  Equipo Decanal","2015-08-30",null,"Acción cíclica, que se mantén de forma continuada","Realizada","Páxina web máis sinxela e intuitiva, incremento dos contidos publicados, máis información ao acceso de todos os grupos de interese. ","Optimo","Continuar no camiño de revisión e actualización periódica e constante da páxina web.",null,null,18,null,null,null,null,null,null,null,{"$f":"IF(L33=\"\",\"\",IF(AND(L33>TODAY(),S33=\"\"),3,IF(AND(L33<TODAY(),S33=\"\"),0,IF(AND(L33>TODAY(),AH33<=2),3,IF(AND(L33<=TODAY(),AH33<=2),0,IF(S33=\"\",\"\"))))))","v":false},{"$f":"+IF(S33=\"\",\"\",IF(S33=\"Realizada\",3,IF(S33=\"Realizada parcialmente\",2,IF(S33=\"Planificada\",1,0))))","v":3},{"$f":"+IF(L33=\"\",\"\",IF(P33=\"\",\"\",IF(P33>=L33,0,\"\")))","v":""}]
["Facultade de Ciencias Xuridicas e de Traballo","2014-GRL(16)","2014-2015","Seguimento anual das titulacións","Criterio 2. Información e transparencia","Centro",null,"Revisión Anual da páxina web do centro.","Actualización tardía, con posterioridade ao inicio do curso, da información das titulacións do centro.","Manter a web actualizada para unha mellor información de tódolos grupos de interese.","Revisión periódica da páxina web. Actualización, previa ao inicio do curso, da información sobre matricula, curso de Benvida, etc. ","2015-06-30","Decanato","Coordinador/a do Título","Coordinador/a do Título Comisión de Calidade Xunta de Facultade","2015-03-30","Acta Comisión de Calidade 26/03/2015","Acción cíclica, que se mantén de forma continuada","Planificada","Páxina web máis sinxela e intuitiva. Máis contidos publicados. Máis información ao acceso de tódolos grupos de interese. ",null,"Revisión da páxina web. Dende outubro 2014 actualización dos contidos desfasados e incorporación de nova información sobre as titulacións do centro atendendo á Recomendación de ACSUG no senso da información pública sobre os títulos que a Facultade debe proporcionar na web.",null,null,17,null,null,null,null,null,null,null,{"$f":"IF(L34=\"\",\"\",IF(AND(L34>TODAY(),S34=\"\"),3,IF(AND(L34<TODAY(),S34=\"\"),0,IF(AND(L34>TODAY(),AH34<=2),3,IF(AND(L34<=TODAY(),AH34<=2),0,IF(S34=\"\",\"\"))))))","v":0},{"$f":"+IF(S34=\"\",\"\",IF(S34=\"Realizada\",3,IF(S34=\"Realizada parcialmente\",2,IF(S34=\"Planificada\",1,0))))","v":1},{"$f":"+IF(L34=\"\",\"\",IF(P34=\"\",\"\",IF(P34>=L34,0,\"\")))","v":""}]
["Facultade de Ciencias Xuridicas e de Traballo","2014-GRL(15)","2014-2015","Seguimento anual das titulacións","Criterio 2. Información e transparencia","Centro",null,"Actualizar o plan de promoción do centro.","Ausencia de promoción suficiente ante potenciais estudantes e a sociedade en xeral.",null,null,"2015-10-31",null,"Xunta de Facultade, Comisión de Calidade",null,"2015-07-30","Plan de Promoción 2015-2016, Comisión de Calidad 06/10/2015",null,"Realizada","Incremento das charlas promocionais do titulo entre os alumnos de bacharelato.","Suficiente",null,null,null,16,null,null,null,null,null,null,null,{"$f":"IF(L35=\"\",\"\",IF(AND(L35>TODAY(),S35=\"\"),3,IF(AND(L35<TODAY(),S35=\"\"),0,IF(AND(L35>TODAY(),AH35<=2),3,IF(AND(L35<=TODAY(),AH35<=2),0,IF(S35=\"\",\"\"))))))","v":false},{"$f":"+IF(S35=\"\",\"\",IF(S35=\"Realizada\",3,IF(S35=\"Realizada parcialmente\",2,IF(S35=\"Planificada\",1,0))))","v":3},{"$f":"+IF(L35=\"\",\"\",IF(P35=\"\",\"\",IF(P35>=L35,0,\"\")))","v":""}]
["Facultade de Ciencias Xuridicas e de Traballo","2014-GRL(14)","2014-2015","Seguimento anual das titulacións","Criterio 2. Información e transparencia","Centro",null,"Mellorar os coñecementos das actividades docentes e investigadoras do profesorado ante a comunidade universitaria e a sociedade.","Necesidade de mecanismos para o coñecemento do profesorado entre o alumnado, asi como as suas liñas de investigación e experiencia docente e investigadora.","Solicitar a inclusión dunha imaxe do docente e das súas liñas de especialidade.\nIntentarase a participacion en redes sociais de caracter profesional para acceder a información sobre os egresados.","Actualizacion e mellora da Web.","2016-07-31","Reitoría e Decanato","Decanato","Comisión de Calidade da Facultade","2016-04-30","Acta Comisión de Calidade 26/03/2015",null,"Realizada parcialmente","Solicitude de datos ao profesorado e mellora constante da web.",null,null,null,null,15,null,null,null,null,null,null,null,{"$f":"IF(L36=\"\",\"\",IF(AND(L36>TODAY(),S36=\"\"),3,IF(AND(L36<TODAY(),S36=\"\"),0,IF(AND(L36>TODAY(),AH36<=2),3,IF(AND(L36<=TODAY(),AH36<=2),0,IF(S36=\"\",\"\"))))))","v":3},{"$f":"+IF(S36=\"\",\"\",IF(S36=\"Realizada\",3,IF(S36=\"Realizada parcialmente\",2,IF(S36=\"Planificada\",1,0))))","v":2},{"$f":"+IF(L36=\"\",\"\",IF(P36=\"\",\"\",IF(P36>=L36,0,\"\")))","v":""}]
["Facultade de Ciencias Xuridicas e de Traballo","2014-GRL(13)","2014-2015","Seguimento anual das titulacións","Criterio 3.  Sistema de Garantía de Calidade","Centro",null,"Publicación de toda a información relativa a Comisión de Calidade na web.",null,null,null,"2014-09-30",null,"Coordinador de Calidade\nComisión de Calidade",null,"2014-06-30","http://cienciasxuridicasedotraballo.webs.uvigo.es/calidade/comision-de-calidade/?lang=es",null,"Realizada","http://cienciasxuridicasedotraballo.webs.uvigo.es/calidade/comision-de-calidade/?lang=es","Optimo",null,null,null,14,null,null,null,null,null,null,null,{"$f":"IF(L37=\"\",\"\",IF(AND(L37>TODAY(),S37=\"\"),3,IF(AND(L37<TODAY(),S37=\"\"),0,IF(AND(L37>TODAY(),AH37<=2),3,IF(AND(L37<=TODAY(),AH37<=2),0,IF(S37=\"\",\"\"))))))","v":false},{"$f":"+IF(S37=\"\",\"\",IF(S37=\"Realizada\",3,IF(S37=\"Realizada parcialmente\",2,IF(S37=\"Planificada\",1,0))))","v":3},{"$f":"+IF(L37=\"\",\"\",IF(P37=\"\",\"\",IF(P37>=L37,0,\"\")))","v":""}]
["Facultade de Ciencias Xuridicas e de Traballo","2014-GRL(12)","2014-2015","Seguimento anual das titulacións","Criterio 3.  Sistema de Garantía de Calidade","Centro",null,"Solicitar a simplificación do SGIC.","Sistema demasiado burocrático e complexo.","Obter un sistema menos burocrático e eficaz.","Solicitude.","2014-12-31",null,"Xunta de Facultade\nComisión de Calidade",null,"2014-12-30","Acta Comisión de Calidade 06/07/2014",null,"Realizada","Acuerdos Comision de Calidade, 06/07/2014.","Suficiente",null,null,null,13,null,null,null,null,null,null,null,{"$f":"IF(L38=\"\",\"\",IF(AND(L38>TODAY(),S38=\"\"),3,IF(AND(L38<TODAY(),S38=\"\"),0,IF(AND(L38>TODAY(),AH38<=2),3,IF(AND(L38<=TODAY(),AH38<=2),0,IF(S38=\"\",\"\"))))))","v":false},{"$f":"+IF(S38=\"\",\"\",IF(S38=\"Realizada\",3,IF(S38=\"Realizada parcialmente\",2,IF(S38=\"Planificada\",1,0))))","v":3},{"$f":"+IF(L38=\"\",\"\",IF(P38=\"\",\"\",IF(P38>=L38,0,\"\")))","v":""}]
["Facultade de Ciencias Xuridicas e de Traballo","2014-GRL(11)","2014-2015","Seguimento anual das titulacións","Criterio 3. Sistema de garantía de calidade","Centro",null,"Revisar a política e obxectivos de calidade do centro.","Os obxectivos deben ser medibles, alcanzables, estar coordinados cos plans de mellora, involucrar grupos de interese e desenvolverse con plans de actuación.","Redefinir os obxectivos de calidade existentes, as liñas de actuación e os indicadores que permitan desenvolvelos.",null,"2014-06-30",null,"Xunta de Facultade\nComisión de Calidade",null,"2014-03-30","Acta Comisión de Calidade 14/11/2014, Xunta de Facultade 29/04/2015",null,"Realizada","Acuerdos Comision de Calidade, 14/11/2014.","Optimo",null,null,null,12,null,null,null,null,null,null,null,{"$f":"IF(L39=\"\",\"\",IF(AND(L39>TODAY(),S39=\"\"),3,IF(AND(L39<TODAY(),S39=\"\"),0,IF(AND(L39>TODAY(),AH39<=2),3,IF(AND(L39<=TODAY(),AH39<=2),0,IF(S39=\"\",\"\"))))))","v":false},{"$f":"+IF(S39=\"\",\"\",IF(S39=\"Realizada\",3,IF(S39=\"Realizada parcialmente\",2,IF(S39=\"Planificada\",1,0))))","v":3},{"$f":"+IF(L39=\"\",\"\",IF(P39=\"\",\"\",IF(P39>=L39,0,\"\")))","v":""}]
["Facultade de Ciencias Xuridicas e de Traballo","2014-GRL(09)","2014-2015","Renovación da acreditación das titulacións oficiais","Criterio 4. Recursos humanos","Títulación","Grao en Relacións Laborais e Recursos Humanos","Aumento do persoal de apoio.","Escasa dotación de PAS para atender a todas as titulacións do Centro.  Existencia dun Departamento na Facultade que non dispón de persoal de apoio todos os días da semana.",null,"Seguir insistindo aos órganos competentes da Uvigo en que as necesidades do Centro incrementáronse e, por tanto, é imprescindible aumentar tamén o persoal de apoio. ","2016-07-31","Reitoría","Reitoría-Xerencia","Decanato","2016-04-30","Solicitude a Reitoría ","A solicitude a Reitoria foi realizada e seguirase ata o cumplimento da accion de mellora.","Realizada parcialmente","A taxa de reposicón de efectivos e a limitación da contratación pola Lei de Orzamentos, non permite a execución deste punto.","Malo, debido a imposibilidade de executar esta mellora.","Modificación da normativa en vigor.",null,null,11,null,null,null,null,null,null,null,{"$f":"IF(L40=\"\",\"\",IF(AND(L40>TODAY(),S40=\"\"),3,IF(AND(L40<TODAY(),S40=\"\"),0,IF(AND(L40>TODAY(),AH40<=2),3,IF(AND(L40<=TODAY(),AH40<=2),0,IF(S40=\"\",\"\"))))))","v":3},{"$f":"+IF(S40=\"\",\"\",IF(S40=\"Realizada\",3,IF(S40=\"Realizada parcialmente\",2,IF(S40=\"Planificada\",1,0))))","v":2},{"$f":"+IF(L40=\"\",\"\",IF(P40=\"\",\"\",IF(P40>=L40,0,\"\")))","v":""}]
["Facultade de Ciencias Xuridicas e de Traballo","2014-GRL(10)","2014-2015","Seguimento anual das titulacións","Criterio 4. Recursos humanos","Centro",null,"Solicitude de persoal administrativo de apoio ao SGIC.","O centro tan só dispon de un bolseiro co dedicación a tempo parcial.","Lograr un maior apoio administrativo para a xestion da calidade do centro.","Solicitude","2015-09-30",null,"Xunta de Facultade\nComisión de Calidade",null,"2015-06-30",null,null,"Realizada","Dotación dun Pas para realización dos informes de acreditación e seguimento. Durante 2 meses.","Suficiente",null,null,null,10,null,null,null,null,null,null,null,{"$f":"IF(L41=\"\",\"\",IF(AND(L41>TODAY(),S41=\"\"),3,IF(AND(L41<TODAY(),S41=\"\"),0,IF(AND(L41>TODAY(),AH41<=2),3,IF(AND(L41<=TODAY(),AH41<=2),0,IF(S41=\"\",\"\"))))))","v":false},{"$f":"+IF(S41=\"\",\"\",IF(S41=\"Realizada\",3,IF(S41=\"Realizada parcialmente\",2,IF(S41=\"Planificada\",1,0))))","v":3},{"$f":"+IF(L41=\"\",\"\",IF(P41=\"\",\"\",IF(P41>=L41,0,\"\")))","v":""}]
["Facultade de Ciencias Xurídicas e do Traballo","2014-GRL(08)","2014-2015","Seguimento anual das titulacións","Criterio 5 Recursos Materiais e servizos","Centro",null,"Reordenación dos espazos.","Problemas coa situación de algunhas dependencias ou insuficiencia de espazos.",". Solicitar ampliación dos espazos administrativos do centro.\n. Reordenar os despachos para unha optimización do espazo.\n. Melloras das aulas (megafonía, rede,...)\n. Prevención de riscos laborais.\n. Atención ás demandas dos discapacitados físicos.\n.  Base de datos de cotido xurídico","Petición a Reitoría.","2016-07-31","Reitoría e Decanato","Decanato e Reitoría",null,"2016-04-30",null,null,"Realizada parcialmente","Realizáronse as seguintes melloras:\n1-Reorganización dos despachos dos profesores, individuais e colectivos. Xullo 2014.\n2-Atención aos discapacitados.\n3- Cafetería, reforma parcial, adecuación á normativa urbanística e sanitaria.\n4-Finalización Aula Multiusos, con equipos informáticos. Xullo 2014.\n5-Mellora do Wifi.\n6-Base de datos de contido Xurídico, a través de Ksolucion.\nPendente:\nA solicitude de ampliación dos espazos administrativos foi realizada, pero a súa execución esta pendente da mellora do edificio e dunha reorganización maior.",null,null,null,null,9,null,null,null,null,null,null,null,3,2,""]
["Facultade de Ciencias Xuridicas e de Traballo","2014-GRL(07)","2014-2015","Seguimento anual das titulacións","Criterio 5. Recursos materiais e servizos","Centro",null,"Mellora dos materiais funxibles.",null,"Solicitar a mellora na calidade dos materiais funxibles e a posibilidade de empregar a imaxe do centro para este tipo de material.","Solicitude.","2016-04-30","Decanato / Reitorada","Decanato / Reitorada","Decanato / Reitorada","2016-01-30",null,null,"Pendente",null,null,null,null,null,8,null,null,null,null,null,null,null,{"$f":"IF(L43=\"\",\"\",IF(AND(L43>TODAY(),S43=\"\"),3,IF(AND(L43<TODAY(),S43=\"\"),0,IF(AND(L43>TODAY(),AH43<=2),3,IF(AND(L43<=TODAY(),AH43<=2),0,IF(S43=\"\",\"\"))))))","v":3},{"$f":"+IF(S43=\"\",\"\",IF(S43=\"Realizada\",3,IF(S43=\"Realizada parcialmente\",2,IF(S43=\"Planificada\",1,0))))","v":0},{"$f":"+IF(L43=\"\",\"\",IF(P43=\"\",\"\",IF(P43>=L43,0,\"\")))","v":""}]
["Facultade de Ciencias Xuridicas e de Traballo","2014-GRL(06)","2014-2015","Seguimento anual das titulacións","Criterio 5. Recursos materiais e servizos","Centro",null,"Incrementar a interrelación cos axentes económicos e sociais","Necesidade de ampliar o número de convenios , e de sectores.","Ampliar o número de convenios para prácticas externas. Ampliar o número de sectores aos que podan acceder os nosos estudantes, suscribir e/ou executar convenios con outras institucions publicas e privadas: Fiscalía de Galicia, Parlamento de Galicia, Instituto acional de Seguridad y Salud, despachos de abogados.","Firma de convenios de colaboración.","2015-06-30","Decanato",null,"Equipo Decanal","2015-03-30","Plan de Promoción 2015-2016 y Plan Operativo de Información Pública 2015-2016",null,"Realizada","Realizacion dun Plan de Promoción e un Plan de Información Pública.","Optimo",null,null,null,7,null,null,null,null,null,null,null,{"$f":"IF(L44=\"\",\"\",IF(AND(L44>TODAY(),S44=\"\"),3,IF(AND(L44<TODAY(),S44=\"\"),0,IF(AND(L44>TODAY(),AH44<=2),3,IF(AND(L44<=TODAY(),AH44<=2),0,IF(S44=\"\",\"\"))))))","v":false},{"$f":"+IF(S44=\"\",\"\",IF(S44=\"Realizada\",3,IF(S44=\"Realizada parcialmente\",2,IF(S44=\"Planificada\",1,0))))","v":3},{"$f":"+IF(L44=\"\",\"\",IF(P44=\"\",\"\",IF(P44>=L44,0,\"\")))","v":""}]
["Facultade de Ciencias Xuridicas e de Traballo","2014-GRL(05)","2014-2015","Seguimento anual das titulacións","Criterio 6. Resultados de aprendizaxe","Titulación","Grao en Relacións Laborais e Recursos Humanos","Análise de taxas.","Diferenzas notables entre créditos matriculados e créditos presentados, Niveis de abandono altos (15%), Taxas de rendemento, eficiencia e graduación non moi elevadas.",".Analizar a problemática dos resultados e expor solucións","Análise das diferenzas entre créditos matriculados e presentados. Establecer a motivación dos niveis de abandono do titulo e expor solucións. Analizar as motivacións para ditos resultados e posibles solucións para o seu incremento. ","31/06/2015","Recursos Humanos da Facultade de Ciencias Xurídicas e do Traballo","Coordinador/a do Título\nComisión de Calidade\nXunta de Facultade","Coordinador/a do Título\nComisión de Calidade\nXunta de Facultade","2015-03-31","Acta Comisión de Calidade 10/10/2014, Comisión de Garantía 14/10/2014",null,"Realizada","Nueva memoria aprobada marzo 2015 e inmplatada curso 2015/2016.","Suficiente",null,null,null,6,null,null,null,null,null,null,null,{"$f":"IF(L45=\"\",\"\",IF(AND(L45>TODAY(),S45=\"\"),3,IF(AND(L45<TODAY(),S45=\"\"),0,IF(AND(L45>TODAY(),AH45<=2),3,IF(AND(L45<=TODAY(),AH45<=2),0,IF(S45=\"\",\"\"))))))","v":false},{"$f":"+IF(S45=\"\",\"\",IF(S45=\"Realizada\",3,IF(S45=\"Realizada parcialmente\",2,IF(S45=\"Planificada\",1,0))))","v":3},{"$f":"+IF(L45=\"\",\"\",IF(P45=\"\",\"\",IF(P45>=L45,0,\"\")))","v":""}]
["Facultade de Ciencias Xuridicas e de Traballo","2014-GRL(04)","2014-2015","Seguimento anual das titulacións","Criterio 6. Resultados de aprendizaxe","Titulación","Grao en Relacións Laborais e Recursos Humanos","Análise dos resultados.","Falta de análise en profundidade dos resultados académicos.","Establecer un calendario para o análise dos resultados da titulación e dos resultados xerais do centro.","Elaborar un cronograma de actuación. Aprobación do cronograma. Comunicación do cronograma aos grupos de interese. ","31/06/2015","Recursos Humanos do Título\nRecursos Humanos da Facultade de Ciencias Xurídicas e do Traballo","Coordinador/a do Titulo\nComisión de Calidade\nXunta de Facultade","Coordinador/a do Título\nComisión de Calidade\nXunta de Facultade","2015-03-31","Documento “Cronograma de Execución para o análise de resultados académicos da Facultade de Ciencias Xurídicas e do Traballo”","Calendario que figura como anexo 6, Manual de Calidade","Realizada"," Aprobación de Manual de Calidade.","Suficiente",null,null,null,5,null,null,null,null,null,null,null,{"$f":"IF(L46=\"\",\"\",IF(AND(L46>TODAY(),S46=\"\"),3,IF(AND(L46<TODAY(),S46=\"\"),0,IF(AND(L46>TODAY(),AH46<=2),3,IF(AND(L46<=TODAY(),AH46<=2),0,IF(S46=\"\",\"\"))))))","v":false},{"$f":"+IF(S46=\"\",\"\",IF(S46=\"Realizada\",3,IF(S46=\"Realizada parcialmente\",2,IF(S46=\"Planificada\",1,0))))","v":3},{"$f":"+IF(L46=\"\",\"\",IF(P46=\"\",\"\",IF(P46>=L46,0,\"\")))","v":""}]
["Facultade de Ciencias Xuridicas e de Traballo","2014-GRL(03)","2014-2015","Seguimento anual das titulacións","Criterio 6. Resultados de aprendizaxe","Centro",null,"Análise dos resultados académicos / Taxas.","Necesidade de mellorar o proceso de análise dos resultados",null,"Análise dos resultados académicos e do funcionamento das prácticas externas por parte da Comisión de Calidade. Establecer un calendario para o análise dos resultados de titulación e dos resultados xerais do Centro. Elaborar un cronograma de actuación.","2014-12-31",null,"Xunta de Facultade\nComisión de Calidade\nCoordinador de Calidade\nCoordinadores dos Títulos",null,"2014-09-30","Acta Comisión de Calidade 10/10/2014",null,"Realizada","Acuerdos Comision de Calidade, 10/10/2014.","Suficiente",null,null,null,4,null,null,null,null,null,null,null,{"$f":"IF(L47=\"\",\"\",IF(AND(L47>TODAY(),S47=\"\"),3,IF(AND(L47<TODAY(),S47=\"\"),0,IF(AND(L47>TODAY(),AH47<=2),3,IF(AND(L47<=TODAY(),AH47<=2),0,IF(S47=\"\",\"\"))))))","v":false},{"$f":"+IF(S47=\"\",\"\",IF(S47=\"Realizada\",3,IF(S47=\"Realizada parcialmente\",2,IF(S47=\"Planificada\",1,0))))","v":3},{"$f":"+IF(L47=\"\",\"\",IF(P47=\"\",\"\",IF(P47>=L47,0,\"\")))","v":""}]
["Facultade de Ciencias Xuridicas e de Traballo","2014-GRL(02)","2014-2015","Seguimento anual das titulacións","Criterio 7. Indicadores de satisfacción e rendemento","Centro",null,"Análise dos resultados das enquisas de satisfacción das titulacións oficiais.","Necesidade de mellorar o proceso de análise dos resultados das enquisas.","Xustificación do analise dos resultados pola Comisión de Calidades.",null,"2014-12-31",null,"Xunta de Facultade\nComisión de Calidade\nCoordinador de Calidade\nCoordinadores dos Título","Equipo Decanal\nComisión de Calidade","2014-09-30","Acta Comisión de Calidade 10/10/2014","Acción cíclica, que se mantén de forma continuada","Realizada","Acuerdos Comision de Calidade, 10/10/2014.","Suficiente",null,null,null,3,null,null,null,null,null,null,null,false,3,""]
["Facultade de Ciencias Xuridicas e de Traballo","2014-GRL(01)","2014-2015","Seguimento anual das titulacións","Criterio 7. Indicadores de satisfacción e rendemento","Titulación","Grao en Relacións Laborais e Recursos Humanos","Fomentar maior participación nas enquisas de satisfacción da titulación.","Participación baixa por parte de todos os interesados (profesorado e alumnado) nas enquisas de satisfacción das titulacións oficiais.","Incrementar a participación do PDI, PAS e Alumnadonas enquisas de satisfacción da titulación.","Proposta da comisión de calidade para incentivar a participacion nas enquisas de sadisfaccion da titulación.","2016-07-31","Recursos Propios","Comisión de Calidade","Decanato","2016-04-30",null,"Reunions cos grupos de interese: PAS, PDI e alumnado","Realizada parcialmente","Leve aumento do indice de participacion dun 23% no ano 2013/2014  a un 26% no ano 2014/2015. Accion ciclica que se manten de forma continuada.",null,"Incremento dos mecanismos de información e requerimiento da cumplimentación das enquisas. Vía correo electrónico a todos e cada un dos alumnos por parte da Coordinación, por parte dos coordinadores do PAT así como invitación a sala de ordenadores para la cumplimentación.","Decanato","2016-07-31",2,null,null,null,null,null,null,null,{"$f":"IF(#REF!=\"\",\"\",IF(AND(#REF!>TODAY(),S49=\"\"),3,IF(AND(#REF!<TODAY(),S49=\"\"),0,IF(AND(#REF!>TODAY(),AH49<=2),3,IF(AND(#REF!<=TODAY(),AH49<=2),0,IF(S49=\"\",\"\"))))))","v":{"$error":"#REF!"}},2,{"$f":"+IF(#REF!=\"\",\"\",IF(L49=\"\",\"\",IF(L49>=#REF!,0,\"\")))","v":{"$error":"#REF!"}}]
[null,null,null,null,null,null,null,null,null,null,null,null,null,null,null,null,null,null,null,null,null,null,null,null,null,null,null,null,null,null,null,null,"","",""]
[null,null,null,null,null,null,null,null,null,null,null,null,null,null,null,null,null,null,null,null,null,null,null,null,null,null,null,null,null,null,null,null,"","",""]